[Event "Early-Titled-Tuesday-Blitz-January-23-2024"]
[Site "Chess.com"]
[Date "2024.01.23"]
[Round "8"]
[White "Titus369"]
[Black "baki83"]
[Result "1-0"]
[WhiteElo "2669"]
[BlackElo "2824"]
[TimeControl "180+1"]
[EndTime "9:27:39 PST"]
[Termination "Titus369 won by resignation"]

1. e4 {[%clk 0:03:00.9]} 1... c5 {[%clk 0:02:59.8]} 2. Nf3 {[%clk 0:03:00.1]}
2... Nc6 {[%clk 0:02:59.6]} 3. d4 {[%clk 0:03:00.4]} 3... cxd4 {[%clk
0:02:59.9]} 4. Nxd4 {[%clk 0:03:01]} 4... Nf6 {[%clk 0:03:00.1]} 5. Nc3 {[%clk
0:03:00.1]} 5... d6 {[%clk 0:03:00.4]} 6. h3 {[%clk 0:02:57.1]} 6... e5 {[%clk
0:02:56.9]} 7. Nde2 {[%clk 0:02:56.9]} 7... Be6 {[%clk 0:02:55.4]} 8. Bg5 {[%clk
0:02:56.7]} 8... Be7 {[%clk 0:02:53.9]} 9. Bxf6 {[%clk 0:02:56.1]} 9... Bxf6
{[%clk 0:02:54.1]} 10. g3 {[%clk 0:02:55.1]} 10... Bg5 {[%clk 0:02:42.8]} 11.
Bg2 {[%clk 0:02:52.8]} 11... O-O {[%clk 0:02:42.5]} 12. O-O {[%clk 0:02:52.3]}
12... Rc8 {[%clk 0:02:41.6]} 13. Nd5 {[%clk 0:02:49.7]} 13... Bxd5 {[%clk
0:02:21.7]} 14. exd5 {[%clk 0:02:44.3]} 14... Ne7 {[%clk 0:02:18]} 15. b3 {[%clk
0:02:35.7]} 15... f5 {[%clk 0:02:17.2]} 16. c4 {[%clk 0:02:35]} 16... Bf6 {[%clk
0:02:09.8]} 17. Rc1 {[%clk 0:02:34.3]} 17... Qa5 {[%clk 0:02:06]} 18. Rc2 {[%clk
0:02:26.6]} 18... Qc5 {[%clk 0:02:02.8]} 19. Nc1 {[%clk 0:02:17.1]} 19... e4
{[%clk 0:02:01.3]} 20. Ne2 {[%clk 0:02:16.4]} 20... Ng6 {[%clk 0:01:50.6]} 21.
g4 {[%clk 0:02:00.5]} 21... Rce8 {[%clk 0:01:15.8]} 22. gxf5 {[%clk 0:01:58.7]}
22... Nh4 {[%clk 0:01:15.7]} 23. Nf4 {[%clk 0:01:52.5]} 23... Qa5 {[%clk
0:00:31.3]} 24. Ne6 {[%clk 0:01:46.5]} 24... Rf7 {[%clk 0:00:16.2]} 25. Bxe4
{[%clk 0:01:41]} 25... b5 {[%clk 0:00:09.3]} 26. c5 {[%clk 0:01:31.5]} 26...
dxc5 {[%clk 0:00:08.7]} 27. Rxc5 {[%clk 0:01:20.5]} 27... Qb6 {[%clk 0:00:08]}
28. Rc6 {[%clk 0:01:17.9]} 28... Qb8 {[%clk 0:00:07]} 29. d6 {[%clk 0:01:15.1]}
29... Rd7 {[%clk 0:00:06.9]} 30. Qd5 {[%clk 0:01:06.8]} 30... Kh8 {[%clk
0:00:05.6]} 31. Rfc1 {[%clk 0:01:03.4]} 31... h6 {[%clk 0:00:04.7]} 32. Rc7
{[%clk 0:00:58]} 32... Red8 {[%clk 0:00:03.6]} 33. Nxd8 {[%clk 0:00:47.7]} 33...
Rxd8 {[%clk 0:00:04.5]} 34. Qe6 {[%clk 0:00:39.9]} 34... Qb6 {[%clk 0:00:04.6]}
35. Rc8 {[%clk 0:00:37.1]} 35... Kh7 {[%clk 0:00:04.4]} 36. Rxd8 {[%clk
0:00:36.5]} 36... Qxd8 {[%clk 0:00:04.4]} 37. Rc8 {[%clk 0:00:35.4]} 1-0

[Event "Early-Titled-Tuesday-Blitz-January-23-2024"]
[Site "Chess.com"]
[Date "2024.01.23"]
[Round "8"]
[White "GrotBchess"]
[Black "Chxss_Khxsbu"]
[Result "1/2-1/2"]
[WhiteElo "2296"]
[BlackElo "1804"]
[TimeControl "180+1"]
[EndTime "9:27:41 PST"]
[Termination "Game drawn by repetition"]

1. d4 {[%clk 0:03:00.9]} 1... Nf6 {[%clk 0:02:54.6]} 2. Nf3 {[%clk 0:03:00.7]}
2... e6 {[%clk 0:02:51.7]} 3. c4 {[%clk 0:03:00.5]} 3... Bb4+ {[%clk 0:02:49.6]}
4. Bd2 {[%clk 0:02:59.8]} 4... a5 {[%clk 0:02:48.4]} 5. g3 {[%clk 0:02:59.1]}
5... O-O {[%clk 0:02:46.5]} 6. Bg2 {[%clk 0:02:59.2]} 6... d5 {[%clk 0:02:46.3]}
7. O-O {[%clk 0:02:59.2]} 7... c6 {[%clk 0:02:44.7]} 8. a3 {[%clk 0:02:58.7]}
8... Be7 {[%clk 0:02:43.6]} 9. Bf4 {[%clk 0:02:57.3]} 9... Nbd7 {[%clk
0:02:43.5]} 10. Qc2 {[%clk 0:02:57.1]} 10... b6 {[%clk 0:02:42.4]} 11. Nbd2
{[%clk 0:02:55.2]} 11... Ba6 {[%clk 0:02:42.5]} 12. Rac1 {[%clk 0:02:51.4]}
12... Rc8 {[%clk 0:02:41.9]} 13. e4 {[%clk 0:02:36.5]} 13... c5 {[%clk
0:02:30.8]} 14. e5 {[%clk 0:02:26.4]} 14... Nh5 {[%clk 0:02:29.7]} 15. b3 {[%clk
0:02:13.1]} 15... cxd4 {[%clk 0:02:20]} 16. Qb2 {[%clk 0:02:11.2]} 16... Nc5
{[%clk 0:02:13]} 17. Qxd4 {[%clk 0:01:55.8]} 17... dxc4 {[%clk 0:02:12]} 18.
bxc4 {[%clk 0:01:46.2]} 18... Qxd4 {[%clk 0:02:09.2]} 19. Nxd4 {[%clk
0:01:46.1]} 19... Nxf4 {[%clk 0:02:08.9]} 20. gxf4 {[%clk 0:01:42.6]} 20... Nd3
{[%clk 0:02:07.7]} 21. Rb1 {[%clk 0:01:40.7]} 21... Nxf4 {[%clk 0:02:02.6]} 22.
Rxb6 {[%clk 0:01:36.7]} 22... Bxc4 {[%clk 0:02:01.5]} 23. Nc6 {[%clk 0:01:31.1]}
23... Bc5 {[%clk 0:01:58.4]} 24. Nxc4 {[%clk 0:01:28.5]} 24... Bxb6 {[%clk
0:01:54.9]} 25. Nxb6 {[%clk 0:01:22.1]} 25... Rc7 {[%clk 0:01:53]} 26. Nxa5
{[%clk 0:01:15.7]} 26... Rc5 {[%clk 0:01:48.3]} 27. Nac4 {[%clk 0:01:05.3]}
27... Rd8 {[%clk 0:01:16.7]} 28. Bf3 {[%clk 0:00:52.5]} 28... Rd3 {[%clk
0:01:12.9]} 29. Rd1 {[%clk 0:00:30.9]} 29... h6 {[%clk 0:01:01.8]} 30. a4 {[%clk
0:00:22.7]} 30... Rxf3 {[%clk 0:00:58.9]} 31. Rd8+ {[%clk 0:00:21.4]} 31... Kh7
{[%clk 0:00:57.1]} 32. Nd7 {[%clk 0:00:19.7]} 32... Rxc4 {[%clk 0:00:38.8]} 33.
Nf8+ {[%clk 0:00:19.3]} 33... Kg8 {[%clk 0:00:35.4]} 34. Nxe6+ {[%clk
0:00:18.5]} 34... Kh7 {[%clk 0:00:35.2]} 35. Nf8+ {[%clk 0:00:18.4]} 35... Kg8
{[%clk 0:00:34.4]} 36. Ne6+ {[%clk 0:00:17.7]} 36... Kh7 {[%clk 0:00:34.7]} 37.
Nf8+ {[%clk 0:00:18.1]} 37... Kg8 {[%clk 0:00:34.5]} 38. Ne6+ {[%clk 0:00:18.1]}
1/2-1/2

[Event "Early-Titled-Tuesday-Blitz-January-23-2024"]
[Site "Chess.com"]
[Date "2024.01.23"]
[Round "8"]
[White "santosalberto1987"]
[Black "Aygehovit1992"]
[Result "1-0"]
[WhiteElo "2554"]
[BlackElo "2689"]
[TimeControl "180+1"]
[EndTime "9:27:42 PST"]
[Termination "santosalberto1987 won by resignation"]

1. e4 {[%clk 0:02:01.4]} 1... e5 {[%clk 0:02:54.5]} 2. Nf3 {[%clk 0:02:01.5]}
2... Nc6 {[%clk 0:02:54.6]} 3. Bc4 {[%clk 0:02:01.7]} 3... Nf6 {[%clk
0:02:51.4]} 4. d3 {[%clk 0:02:01.7]} 4... h6 {[%clk 0:02:50]} 5. O-O {[%clk
0:02:01]} 5... d6 {[%clk 0:02:49.5]} 6. c3 {[%clk 0:02:01.2]} 6... g5 {[%clk
0:02:49.6]} 7. Bb3 {[%clk 0:01:58.6]} 7... g4 {[%clk 0:02:44.6]} 8. Ne1 {[%clk
0:01:55.9]} 8... h5 {[%clk 0:02:44.4]} 9. f4 {[%clk 0:01:55.8]} 9... Be7 {[%clk
0:02:21.9]} 10. fxe5 {[%clk 0:01:53.5]} 10... dxe5 {[%clk 0:02:21.4]} 11. Bg5
{[%clk 0:01:53]} 11... h4 {[%clk 0:02:06.5]} 12. Qe2 {[%clk 0:01:42.5]} 12...
Bc5+ {[%clk 0:01:02.6]} 13. Kh1 {[%clk 0:01:39]} 13... Nxe4 {[%clk 0:00:51.6]}
14. Bxf7+ {[%clk 0:01:18.3]} 14... Kd7 {[%clk 0:00:51.9]} 15. Qxe4 {[%clk
0:01:06]} 15... Qxg5 {[%clk 0:00:50]} 16. d4 {[%clk 0:00:39.2]} 16... Bd6 {[%clk
0:00:46.5]} 17. Na3 {[%clk 0:00:34.8]} 17... Ke7 {[%clk 0:00:25.6]} 18. Nc4
{[%clk 0:00:32.8]} 18... Bd7 {[%clk 0:00:16.3]} 19. Nd3 {[%clk 0:00:32.4]} 19...
Raf8 {[%clk 0:00:15.6]} 20. dxe5 {[%clk 0:00:24]} 20... Nxe5 {[%clk 0:00:03.9]}
21. Ncxe5 {[%clk 0:00:23]} 21... Bxe5 {[%clk 0:00:02.6]} 22. Nxe5 {[%clk
0:00:22.6]} 22... Be6 {[%clk 0:00:02.4]} 23. Bxe6 {[%clk 0:00:18.9]} 23... h3
{[%clk 0:00:02.5]} 24. g3 {[%clk 0:00:17]} 24... Qd2 {[%clk 0:00:02.4]} 25. Ng6+
{[%clk 0:00:16.3]} 25... Kd6 {[%clk 0:00:02.6]} 26. Nxf8 {[%clk 0:00:14.9]}
26... Rxf8 {[%clk 0:00:02.1]} 27. Rxf8 {[%clk 0:00:14.2]} 1-0

[Event "Early-Titled-Tuesday-Blitz-January-23-2024"]
[Site "Chess.com"]
[Date "2024.01.23"]
[Round "8"]
[White "AljoschaFeuerstack"]
[Black "FMCASTE"]
[Result "1-0"]
[WhiteElo "2630"]
[BlackElo "2505"]
[TimeControl "180+1"]
[EndTime "9:27:42 PST"]
[Termination "AljoschaFeuerstack won by resignation"]

1. e4 {[%clk 0:03:00.9]} 1... g6 {[%clk 0:03:00.9]} 2. d4 {[%clk 0:02:58]} 2...
Bg7 {[%clk 0:03:01.8]} 3. Nc3 {[%clk 0:02:55.2]} 3... d6 {[%clk 0:03:02.7]} 4.
Be3 {[%clk 0:02:54.8]} 4... a6 {[%clk 0:03:03.6]} 5. Qd2 {[%clk 0:02:53.7]} 5...
e6 {[%clk 0:03:03]} 6. h4 {[%clk 0:02:49.9]} 6... h6 {[%clk 0:03:03.1]} 7. f4
{[%clk 0:02:46.6]} 7... Ne7 {[%clk 0:03:01.7]} 8. h5 {[%clk 0:02:44]} 8... gxh5
{[%clk 0:02:58.8]} 9. Rxh5 {[%clk 0:02:33.6]} 9... b5 {[%clk 0:02:58.6]} 10. Bd3
{[%clk 0:02:26.7]} 10... Bb7 {[%clk 0:02:57.2]} 11. O-O-O {[%clk 0:02:19.4]}
11... Nd7 {[%clk 0:02:57.6]} 12. Nf3 {[%clk 0:02:11.1]} 12... Nf6 {[%clk
0:02:57.4]} 13. Rh3 {[%clk 0:01:51.4]} 13... b4 {[%clk 0:02:57.6]} 14. Ne2
{[%clk 0:01:48.8]} 14... Nxe4 {[%clk 0:02:53.9]} 15. Qxb4 {[%clk 0:01:41.2]}
15... Rb8 {[%clk 0:02:50.3]} 16. Qe1 {[%clk 0:01:33.2]} 16... Qd7 {[%clk
0:02:36.1]} 17. Bxe4 {[%clk 0:01:09.4]} 17... Bxe4 {[%clk 0:02:35.3]} 18. Nc3
{[%clk 0:01:10]} 18... Bf5 {[%clk 0:02:33.2]} 19. Rg3 {[%clk 0:01:01.7]} 19...
Bf6 {[%clk 0:02:28]} 20. Ne5 {[%clk 0:00:51.1]} 20... Qc8 {[%clk 0:01:58.5]} 21.
Nf3 {[%clk 0:00:20.3]} 21... Qb7 {[%clk 0:01:54.3]} 22. b3 {[%clk 0:00:20.6]}
22... c5 {[%clk 0:01:51.4]} 23. Bf2 {[%clk 0:00:20.1]} 23... Qb4 {[%clk
0:01:45.1]} 24. Kb2 {[%clk 0:00:18.3]} 24... cxd4 {[%clk 0:01:39.3]} 25. Bxd4
{[%clk 0:00:17.1]} 25... Bxd4 {[%clk 0:01:20.1]} 26. Rxd4 {[%clk 0:00:18]} 26...
Qc5 {[%clk 0:01:19.2]} 27. Qd2 {[%clk 0:00:18.4]} 27... Rd8 {[%clk 0:01:00.1]}
28. Na4 {[%clk 0:00:15.4]} 28... Qc6 {[%clk 0:00:54.1]} 29. Nh4 {[%clk
0:00:15.7]} 29... Be4 {[%clk 0:00:49.5]} 30. Rc3 {[%clk 0:00:16.2]} 30... Qb7
{[%clk 0:00:48.5]} 31. Rxd6 {[%clk 0:00:16.5]} 31... O-O {[%clk 0:00:46]} 32.
Rxd8 {[%clk 0:00:15.9]} 32... Nd5 {[%clk 0:00:42.7]} 33. Rxf8+ {[%clk
0:00:15.6]} 33... Kxf8 {[%clk 0:00:43.6]} 34. Rc4 {[%clk 0:00:15.3]} 34... Qe7
{[%clk 0:00:43.3]} 35. Rxe4 {[%clk 0:00:15]} 35... Qxh4 {[%clk 0:00:43.9]} 36.
Qd3 {[%clk 0:00:13.8]} 36... Qf6+ {[%clk 0:00:41.5]} 37. Nc3 {[%clk 0:00:13.4]}
37... Nxf4 {[%clk 0:00:40.6]} 38. Qd4 {[%clk 0:00:12.4]} 38... e5 {[%clk
0:00:35]} 39. Qxe5 {[%clk 0:00:12.3]} 1-0

[Event "Early-Titled-Tuesday-Blitz-January-23-2024"]
[Site "Chess.com"]
[Date "2024.01.23"]
[Round "8"]
[White "Crazy_girl99"]
[Black "DvaHrasta"]
[Result "0-1"]
[WhiteElo "2601"]
[BlackElo "2452"]
[TimeControl "180+1"]
[EndTime "9:27:42 PST"]
[Termination "DvaHrasta won by resignation"]

1. Nf3 {[%clk 0:02:59.6]} 1... Nf6 {[%clk 0:02:59.4]} 2. g3 {[%clk 0:02:59.5]}
2... d5 {[%clk 0:02:58.8]} 3. Bg2 {[%clk 0:02:59.9]} 3... c5 {[%clk 0:02:58.9]}
4. O-O {[%clk 0:03:00.1]} 4... Nc6 {[%clk 0:02:58.9]} 5. d3 {[%clk 0:03:00.2]}
5... Bg4 {[%clk 0:02:58.2]} 6. Nbd2 {[%clk 0:03:00.3]} 6... e6 {[%clk
0:02:57.2]} 7. h3 {[%clk 0:03:00.5]} 7... Bxf3 {[%clk 0:02:54.2]} 8. Bxf3 {[%clk
0:02:59.9]} 8... Be7 {[%clk 0:02:54]} 9. e4 {[%clk 0:02:59.5]} 9... O-O {[%clk
0:02:53.4]} 10. Re1 {[%clk 0:02:58.9]} 10... b5 {[%clk 0:02:51.4]} 11. Bg2
{[%clk 0:02:56.7]} 11... b4 {[%clk 0:02:49.2]} 12. e5 {[%clk 0:02:56.8]} 12...
Nd7 {[%clk 0:02:48.6]} 13. f4 {[%clk 0:02:56.1]} 13... a5 {[%clk 0:02:42.6]} 14.
Nf3 {[%clk 0:02:56.2]} 14... a4 {[%clk 0:02:41.4]} 15. Be3 {[%clk 0:02:55.9]}
15... d4 {[%clk 0:02:32.1]} 16. Bf2 {[%clk 0:02:55.3]} 16... Nb6 {[%clk
0:02:28.7]} 17. Nd2 {[%clk 0:02:51.5]} 17... Nd5 {[%clk 0:02:26.7]} 18. Kh2
{[%clk 0:02:40.8]} 18... a3 {[%clk 0:02:25.3]} 19. bxa3 {[%clk 0:02:36.1]} 19...
Rxa3 {[%clk 0:02:21]} 20. Nc4 {[%clk 0:02:35.6]} 20... Ra6 {[%clk 0:02:13.8]}
21. a3 {[%clk 0:02:32.1]} 21... bxa3 {[%clk 0:02:04.2]} 22. Rxa3 {[%clk
0:02:29.5]} 22... Rxa3 {[%clk 0:02:02.8]} 23. Nxa3 {[%clk 0:02:30.4]} 23... Ncb4
{[%clk 0:02:02.1]} 24. h4 {[%clk 0:02:23.6]} 24... Qa5 {[%clk 0:02:00]} 25. Nc4
{[%clk 0:02:23.1]} 25... Qa2 {[%clk 0:01:58.5]} 26. Qg4 {[%clk 0:01:46.1]} 26...
Qxc2 {[%clk 0:01:51.8]} 27. Re2 {[%clk 0:01:27.2]} 27... Qxd3 {[%clk 0:01:49.2]}
28. Nb2 {[%clk 0:01:27.1]} 28... Qg6 {[%clk 0:01:41.7]} 29. Qh3 {[%clk
0:01:26.9]} 29... h5 {[%clk 0:01:26.5]} 30. Be4 {[%clk 0:01:15.5]} 30... Qg4
{[%clk 0:01:23.6]} 31. Qf1 {[%clk 0:01:16.2]} 31... Ra8 {[%clk 0:01:08.7]} 32.
Nd3 {[%clk 0:01:03.7]} 32... Nxd3 {[%clk 0:01:04.8]} 33. Bxd3 {[%clk 0:01:04.6]}
33... Ra3 {[%clk 0:01:03.6]} 34. Be4 {[%clk 0:00:55.1]} 34... Bxh4 {[%clk
0:00:40.7]} 35. Bxd5 {[%clk 0:00:35.9]} 35... Bxg3+ {[%clk 0:00:38.5]} 36. Bxg3
{[%clk 0:00:26.9]} 36... Qxg3+ {[%clk 0:00:38.5]} 37. Kh1 {[%clk 0:00:25.7]}
37... exd5 {[%clk 0:00:38.5]} 38. Rg2 {[%clk 0:00:24.8]} 38... Qh3+ {[%clk
0:00:34.7]} 39. Kg1 {[%clk 0:00:25.3]} 39... Rg3 {[%clk 0:00:33.8]} 40. Rxg3
{[%clk 0:00:19]} 40... Qxg3+ {[%clk 0:00:33.9]} 41. Kh1 {[%clk 0:00:19.9]} 41...
d3 {[%clk 0:00:32.5]} 42. f5 {[%clk 0:00:18]} 42... d2 {[%clk 0:00:31.1]} 43. e6
{[%clk 0:00:18]} 43... Qe1 {[%clk 0:00:28.6]} 0-1

[Event "Early-Titled-Tuesday-Blitz-January-23-2024"]
[Site "Chess.com"]
[Date "2024.01.23"]
[Round "8"]
[White "Duhless"]
[Black "Yaacovn"]
[Result "0-1"]
[WhiteElo "3098"]
[BlackElo "2806"]
[TimeControl "180+1"]
[EndTime "9:27:43 PST"]
[Termination "Yaacovn won on time"]

1. e4 {[%clk 0:02:57.1]} 1... c6 {[%clk 0:02:59.8]} 2. d4 {[%clk 0:02:56.2]}
2... d5 {[%clk 0:03:00.7]} 3. e5 {[%clk 0:02:57]} 3... Bf5 {[%clk 0:02:57.4]} 4.
Nf3 {[%clk 0:02:56.7]} 4... e6 {[%clk 0:02:57.1]} 5. Be2 {[%clk 0:02:57.4]} 5...
Ne7 {[%clk 0:02:57.1]} 6. Nbd2 {[%clk 0:02:57.1]} 6... Bg6 {[%clk 0:02:57.6]} 7.
Nf1 {[%clk 0:02:55.7]} 7... Nf5 {[%clk 0:02:56]} 8. Ng3 {[%clk 0:02:54.8]} 8...
c5 {[%clk 0:02:56.5]} 9. c4 {[%clk 0:02:41.4]} 9... dxc4 {[%clk 0:02:54.6]} 10.
Bg5 {[%clk 0:02:33.5]} 10... Be7 {[%clk 0:02:46]} 11. Bxe7 {[%clk 0:02:33.2]}
11... Qxe7 {[%clk 0:02:46.9]} 12. d5 {[%clk 0:02:29.4]} 12... exd5 {[%clk
0:02:38.9]} 13. Qxd5 {[%clk 0:02:29]} 13... Nc6 {[%clk 0:02:29.6]} 14. O-O
{[%clk 0:02:23.1]} 14... Rd8 {[%clk 0:02:22.8]} 15. Qxc4 {[%clk 0:02:18.2]}
15... O-O {[%clk 0:02:22.6]} 16. Nxf5 {[%clk 0:02:13.9]} 16... Bxf5 {[%clk
0:02:22.5]} 17. Qc3 {[%clk 0:02:14.8]} 17... b6 {[%clk 0:02:16.7]} 18. Rfd1
{[%clk 0:02:11.9]} 18... Rxd1+ {[%clk 0:02:15.3]} 19. Rxd1 {[%clk 0:02:11.4]}
19... Rd8 {[%clk 0:02:16.2]} 20. Rxd8+ {[%clk 0:02:06.2]} 20... Qxd8 {[%clk
0:02:17.1]} 21. h3 {[%clk 0:02:07]} 21... h6 {[%clk 0:02:11.5]} 22. a3 {[%clk
0:01:51]} 22... Nd4 {[%clk 0:02:05.5]} 23. Bf1 {[%clk 0:01:36.2]} 23... Qd5
{[%clk 0:02:01.7]} 24. b4 {[%clk 0:01:18.1]} 24... Nxf3+ {[%clk 0:01:52.7]} 25.
gxf3 {[%clk 0:01:17.7]} 25... Qd4 {[%clk 0:01:51.2]} 26. Qe3 {[%clk 0:00:27.9]}
26... g5 {[%clk 0:01:48.5]} 27. bxc5 {[%clk 0:00:25]} 27... bxc5 {[%clk
0:01:47.8]} 28. Kg2 {[%clk 0:00:17.7]} 28... Kf8 {[%clk 0:01:23.7]} 29. f4
{[%clk 0:00:15.1]} 29... gxf4 {[%clk 0:01:14.5]} 30. Qxd4 {[%clk 0:00:14.9]}
30... cxd4 {[%clk 0:01:15.4]} 31. Bc4 {[%clk 0:00:11.5]} 31... Be4+ {[%clk
0:01:00.9]} 32. Kf1 {[%clk 0:00:09.5]} 32... Ke7 {[%clk 0:00:58.5]} 33. Ke2
{[%clk 0:00:08.9]} 33... f6 {[%clk 0:00:58.3]} 34. exf6+ {[%clk 0:00:07.4]}
34... Kxf6 {[%clk 0:00:58.3]} 35. h4 {[%clk 0:00:02.6]} 35... Ke5 {[%clk
0:00:56.9]} 36. Bb5 {[%clk 0:00:02.1]} 36... Bf5 {[%clk 0:00:53]} 37. Kf3 {[%clk
0:00:01.5]} 37... Bc2 {[%clk 0:00:49.7]} 38. Ke2 {[%clk 0:00:01.6]} 38... Bb3
{[%clk 0:00:49.5]} 39. Kd2 {[%clk 0:00:01.5]} 39... Be6 {[%clk 0:00:48.6]} 40.
Bc6 {[%clk 0:00:01.4]} 40... Bc4 {[%clk 0:00:46.1]} 41. Bb7 {[%clk 0:00:01]}
41... Kd6 {[%clk 0:00:45.9]} 0-1

[Event "Early-Titled-Tuesday-Blitz-January-23-2024"]
[Site "Chess.com"]
[Date "2024.01.23"]
[Round "8"]
[White "yaguigor"]
[Black "GMSrinath"]
[Result "0-1"]
[WhiteElo "2639"]
[BlackElo "2838"]
[TimeControl "180+1"]
[EndTime "9:27:43 PST"]
[Termination "GMSrinath won by resignation"]

1. e4 {[%clk 0:03:00.9]} 1... c5 {[%clk 0:02:59.3]} 2. Nf3 {[%clk 0:03:00.3]}
2... d6 {[%clk 0:02:57]} 3. d4 {[%clk 0:03:00.5]} 3... cxd4 {[%clk 0:02:57.5]}
4. Nxd4 {[%clk 0:03:01.4]} 4... Nf6 {[%clk 0:02:57.3]} 5. Nc3 {[%clk 0:03:01.9]}
5... Nc6 {[%clk 0:02:57.5]} 6. Bg5 {[%clk 0:02:59.5]} 6... e6 {[%clk 0:02:57.6]}
7. Qd2 {[%clk 0:02:58.7]} 7... a6 {[%clk 0:02:58]} 8. O-O-O {[%clk 0:02:58]}
8... Be7 {[%clk 0:02:57.8]} 9. f4 {[%clk 0:02:55.9]} 9... Bd7 {[%clk 0:02:57.6]}
10. Nf3 {[%clk 0:02:45.7]} 10... b5 {[%clk 0:02:57.7]} 11. e5 {[%clk 0:02:34.2]}
11... b4 {[%clk 0:02:56.8]} 12. exf6 {[%clk 0:02:27.6]} 12... bxc3 {[%clk
0:02:57]} 13. Qxc3 {[%clk 0:02:27.8]} 13... gxf6 {[%clk 0:02:57.5]} 14. Bh4
{[%clk 0:02:22.3]} 14... Rg8 {[%clk 0:02:57.7]} 15. g3 {[%clk 0:02:14.4]} 15...
d5 {[%clk 0:02:28]} 16. a3 {[%clk 0:02:11.1]} 16... Rc8 {[%clk 0:02:24]} 17.
Bxa6 {[%clk 0:02:08]} 17... Nb4 {[%clk 0:02:23.6]} 18. Bxc8 {[%clk 0:01:55.3]}
18... Na2+ {[%clk 0:02:22.2]} 19. Kd2 {[%clk 0:01:55.8]} 19... Nxc3 {[%clk
0:02:22.8]} 20. Bxd7+ {[%clk 0:01:55.3]} 20... Qxd7 {[%clk 0:02:18.2]} 21. Kxc3
{[%clk 0:01:44.1]} 21... Qb5 {[%clk 0:02:05.1]} 22. Kd2 {[%clk 0:01:31.1]} 22...
Qxb2 {[%clk 0:01:34.4]} 23. Rb1 {[%clk 0:01:29.3]} 23... Qxa3 {[%clk 0:01:34.6]}
24. Rb8+ {[%clk 0:01:26.7]} 24... Kd7 {[%clk 0:01:29.9]} 25. Rxg8 {[%clk
0:01:16]} 25... Qxf3 {[%clk 0:01:29.3]} 26. Rb1 {[%clk 0:01:15.8]} 26... Qf2+
{[%clk 0:01:22.6]} 27. Kd3 {[%clk 0:01:14.7]} 27... Bc5 {[%clk 0:01:17.2]} 28.
c3 {[%clk 0:01:08.5]} 28... Qe3+ {[%clk 0:01:11.1]} 29. Kc2 {[%clk 0:01:08.1]}
29... Qe4+ {[%clk 0:01:02.4]} 30. Kb2 {[%clk 0:01:06.4]} 30... Qe2+ {[%clk
0:00:39.1]} 31. Kb3 {[%clk 0:01:05]} 31... Qc4+ {[%clk 0:00:29.1]} 32. Kb2
{[%clk 0:01:00.4]} 32... d4 {[%clk 0:00:27.4]} 33. Rc1 {[%clk 0:00:36.5]} 33...
dxc3+ {[%clk 0:00:21.3]} 34. Kc2 {[%clk 0:00:37]} 34... Bd4 {[%clk 0:00:20]} 35.
Rd1 {[%clk 0:00:30.7]} 35... Qe2+ {[%clk 0:00:18.6]} 0-1

[Event "Early-Titled-Tuesday-Blitz-January-23-2024"]
[Site "Chess.com"]
[Date "2024.01.23"]
[Round "8"]
[White "CaspiIsrael"]
[Black "MusicCityMaster"]
[Result "1-0"]
[WhiteElo "2692"]
[BlackElo "2447"]
[TimeControl "180+1"]
[EndTime "9:27:43 PST"]
[Termination "CaspiIsrael won by resignation"]

1. d4 {[%clk 0:03:00.9]} 1... Nf6 {[%clk 0:02:59.5]} 2. Nc3 {[%clk 0:02:57.4]}
2... d5 {[%clk 0:02:58.9]} 3. Bf4 {[%clk 0:02:56.8]} 3... c6 {[%clk 0:02:59.2]}
4. e3 {[%clk 0:02:56.4]} 4... e6 {[%clk 0:02:57.9]} 5. Bd3 {[%clk 0:02:55.8]}
5... b5 {[%clk 0:02:57.9]} 6. a3 {[%clk 0:02:51.5]} 6... Bd6 {[%clk 0:02:53.7]}
7. Bxd6 {[%clk 0:02:48.9]} 7... Qxd6 {[%clk 0:02:53.4]} 8. f4 {[%clk 0:02:49.8]}
8... a5 {[%clk 0:02:46.7]} 9. Nf3 {[%clk 0:02:49.4]} 9... Nbd7 {[%clk 0:02:38]}
10. Ne5 {[%clk 0:02:49]} 10... Bb7 {[%clk 0:02:37]} 11. O-O {[%clk 0:02:43.4]}
11... O-O {[%clk 0:02:34.8]} 12. g4 {[%clk 0:02:40]} 12... b4 {[%clk 0:02:35.1]}
13. Ne2 {[%clk 0:02:38]} 13... c5 {[%clk 0:02:29.6]} 14. g5 {[%clk 0:02:35.9]}
14... Ne4 {[%clk 0:02:29.1]} 15. Bxe4 {[%clk 0:02:34.3]} 15... dxe4 {[%clk
0:02:28.8]} 16. Nxd7 {[%clk 0:02:32.4]} 16... Qxd7 {[%clk 0:02:28.3]} 17. dxc5
{[%clk 0:02:31.9]} 17... Qc6 {[%clk 0:02:20.7]} 18. axb4 {[%clk 0:02:25.6]}
18... axb4 {[%clk 0:02:20.4]} 19. Qd4 {[%clk 0:02:26.3]} 19... Ba6 {[%clk
0:02:14.6]} 20. Rfe1 {[%clk 0:02:20.1]} 20... Bxe2 {[%clk 0:02:02.8]} 21. Rxa8
{[%clk 0:02:19.5]} 21... Rxa8 {[%clk 0:02:02.2]} 22. Rxe2 {[%clk 0:02:19.5]}
22... Qb5 {[%clk 0:01:51.5]} 23. Kf2 {[%clk 0:02:19]} 23... Rc8 {[%clk
0:01:42.7]} 24. Rd2 {[%clk 0:02:19]} 24... g6 {[%clk 0:01:41]} 25. Qxe4 {[%clk
0:02:12.1]} 25... Qxc5 {[%clk 0:01:40.9]} 26. b3 {[%clk 0:02:09.9]} 26... Qc3
{[%clk 0:01:34.9]} 27. Ke2 {[%clk 0:02:05.7]} 27... e5 {[%clk 0:01:15.3]} 28. f5
{[%clk 0:02:02.9]} 28... gxf5 {[%clk 0:00:59]} 29. Qxf5 {[%clk 0:02:03]} 29...
Qc6 {[%clk 0:00:59.2]} 30. e4 {[%clk 0:01:44.3]} 30... Qb5+ {[%clk 0:00:54.7]}
31. Kf2 {[%clk 0:01:39.6]} 31... Qc5+ {[%clk 0:00:53.2]} 32. Kg2 {[%clk
0:01:39.4]} 32... Ra8 {[%clk 0:00:48.6]} 33. Rf2 {[%clk 0:01:36.4]} 33... Qc7
{[%clk 0:00:40.3]} 34. Qf3 {[%clk 0:01:25.5]} 34... Ra1 {[%clk 0:00:38.1]} 35.
h4 {[%clk 0:01:23.4]} 35... Qa7 {[%clk 0:00:32.3]} 36. Qd3 {[%clk 0:01:19.9]}
36... Qe7 {[%clk 0:00:24.3]} 37. Rf6 {[%clk 0:01:15.7]} 37... Qc5 {[%clk
0:00:19.1]} 38. Qd8+ {[%clk 0:01:09.5]} 38... Kg7 {[%clk 0:00:18.6]} 39. Rf2
{[%clk 0:01:10.1]} 39... Qa7 {[%clk 0:00:14.7]} 40. h5 {[%clk 0:01:06.7]} 40...
Qb7 {[%clk 0:00:11.4]} 41. Qf6+ {[%clk 0:01:04.1]} 41... Kg8 {[%clk 0:00:11.4]}
42. Qxe5 {[%clk 0:01:04.5]} 42... Qd7 {[%clk 0:00:10.3]} 43. Qf5 {[%clk
0:01:01.7]} 43... Qb7 {[%clk 0:00:08.4]} 44. h6 {[%clk 0:01:01]} 44... Re1
{[%clk 0:00:07.7]} 45. Qd5 {[%clk 0:00:47.5]} 45... Qc7 {[%clk 0:00:06.5]} 46.
Qa8+ {[%clk 0:00:46]} 1-0